fUST/lending_fUST_20250209
["ID","MTS","AMOUNT","RATE_DAILY","PERIOD"]
[352310574,1739037039767,-525.36,0.00011095,2]
[352310575,1739037039777,-270.48935706,0.00011095,2]
[352310576,1739037039786,-558.92,0.00011095,2]
[352310577,1739037039795,-931.18,0.00011095,2]
[352310578,1739037039805,-657.17,0.00011095,2]
[352310579,1739037039814,-1377.28,0.00011095,2]
[352310580,1739037039824,-679.32,0.00011095,2]
[352310581,1739037039833,-500.0,0.00011095,2]
[352310582,1739037039843,-500.0,0.00011095,2]
[352310583,1739037039852,-616.8,0.00011095,2]
[352310584,1739037039862,-3171.37,0.00011095,2]
[352310585,1739037039871,-849.25,0.00011095,2]
[352310586,1739037039881,-21125.65,0.00011095,2]
[352310587,1739037039891,-532.86,0.00011095,2]
[352310588,1739037039900,-220.19564891,0.00011132,2]
[352310589,1739037039910,-500.0,0.00011232,2]
[352310590,1739037039921,-500.0,0.00011232,2]
[352310591,1739037039931,-500.0,0.00011232,2]
[352310592,1739037039940,-486.32161405,0.00011232,2]
[352310593,1739037039950,-866.14,0.00011232,2]
[352310594,1739037039960,-500.0,0.00011232,2]
[352310595,1739037039970,-500.0,0.00011232,2]
[352310596,1739037039980,-500.0,0.00011232,2]
[352310597,1739037039991,-500.0,0.00011232,2]
[352310598,1739037040001,-316.86012232,0.00011232,2]
[352310599,1739037040012,-803.11,0.00011232,2]
[352310600,1739037040022,-500.0,0.00011232,2]
[352310601,1739037040033,-500.0,0.00011232,2]
[352310602,1739037040042,-500.0,0.00011232,2]
[352310603,1739037040052,-597.54,0.00011232,2]
[352310604,1739037040062,-500.0,0.00011232,2]
[352310605,1739037040071,-589.12,0.00011232,2]
[352310606,1739037040080,-500.0,0.00011232,2]
[352310607,1739037040090,-500.0,0.00011232,2]
[352310608,1739037040100,-500.0,0.00011232,2]
[352310609,1739037040110,-500.0,0.00011232,2]
[352310610,1739037040119,-640.95,0.00011232,2]
[352310611,1739037040130,-500.0,0.00011232,2]
[352310612,1739037040139,-500.0,0.00011232,2]
[352310613,1739037040149,-500.0,0.00011232,2]
[352310614,1739037040159,-500.0,0.00011232,2]
[352310615,1739037040169,-500.0,0.00011232,2]
[352310616,1739037040179,-584.62455967,0.00011232,2]
[352310617,1739037040189,-518.2,0.00011232,2]
[352310618,1739037040198,-732.19,0.00011232,2]
[352310619,1739037040208,-500.0,0.00011232,2]
[352310620,1739037040217,-500.0,0.00011232,2]
[352310621,1739037040227,-719.84,0.00011232,2]
[352310622,1739037040236,-1030.25,0.00011232,2]
[352310623,1739037040247,-2134.61,0.00011232,2]
[352310624,1739037040257,-500.0,0.00011232,2]
[352310625,1739037040267,-1216.47,0.00011232,2]
[352310626,1739037040276,-650.23,0.00011232,2]
[352310627,1739037040286,-1149.69,0.00011232,2]
[352310628,1739037040295,-898.24,0.00011232,2]
[352310629,1739037040304,-500.0,0.00011232,2]
[352310630,1739037040314,-8241.23,0.00011232,2]
[352310631,1739037040324,-761.98,0.00011232,2]
[352310633,1739037040333,-388.6,0.00011232,2]
[352310634,1739037040348,-500.0,0.00011232,2]
[352310635,1739037040358,-836.05,0.00011232,2]
[352310636,1739037040367,-500.0,0.00011232,2]
[352310637,1739037040377,-2585.72,0.00011232,2]
[352310638,1739037040389,-500.0,0.00011232,2]
[352310639,1739037040404,-860.07,0.00011232,2]
[352310640,1739037040413,-500.0,0.00011232,2]
[352310641,1739037040423,-1107.41,0.00011232,2]
[352310642,1739037040433,-500.0,0.00011232,2]
[352310644,1739037040442,-500.0,0.00011232,2]
[352310645,1739037040451,-500.0,0.00011232,2]
[352310647,1739037040460,-500.0,0.00011232,2]
[352310649,1739037040470,-500.0,0.00011232,2]
[352310652,1739037040480,-1876.05,0.00011232,2]
[352310653,1739037040490,-500.0,0.00011232,2]
[352310656,1739037040499,-500.0,0.00011232,2]
[352310658,1739037040510,-858.41,0.00011232,2]
[352310660,1739037040519,-500.0,0.00011232,2]
[352310662,1739037040528,-500.0,0.00011232,2]
[352310664,1739037040538,-500.0,0.00011232,2]
[352310666,1739037040547,-4495.15,0.00011232,2]
[352310668,1739037040561,-500.0,0.00011232,2]
[352310669,1739037040570,-1820.53,0.00011232,2]
[352310671,1739037040579,-500.0,0.00011232,2]
[352310672,1739037040735,-1798.46,0.00011232,2]
[352310673,1739037040746,-500.0,0.00011232,2]
[352310674,1739037040756,-835.94,0.00011232,2]
[352310675,1739037040769,-526.8473696,0.00011232,2]
[352310676,1739037040778,-2203.81,0.00011232,2]
[352310677,1739037040787,-500.0,0.00011232,2]
[352310678,1739037040797,-2052.02,0.00011232,2]
[352310679,1739037040806,-778.74,0.00011232,2]
[352310680,1739037040815,-894.43,0.00011232,2]
[352310681,1739037040825,-688.29,0.00011232,2]
[352310682,1739037040834,-9412.92,0.00011232,2]
[352310683,1739037040843,-500.0,0.00011232,2]
[352310684,1739037040852,-500.0,0.00011232,2]
[352310685,1739037040862,-500.0,0.00011232,2]
[352310686,1739037040871,-525.36,0.00011232,2]
[352310687,1739037040881,-558.92,0.00011232,2]
[352310688,1739037040891,-931.18,0.00011232,2]
[352310689,1739037040900,-657.17,0.00011232,2]
[352310690,1739037040910,-1377.28,0.00011232,2]
[352310691,1739037040919,-679.32,0.00011232,2]
[352310692,1739037040929,-500.0,0.00011232,2]
[352310693,1739037040938,-500.0,0.00011232,2]
[352310694,1739037040948,-616.8,0.00011232,2]
[352310695,1739037040958,-3171.37,0.00011232,2]
[352310696,1739037040967,-849.25,0.00011232,2]
[352310697,1739037040976,-21125.65,0.00011232,2]
[352310698,1739037040985,-532.86,0.00011232,2]
[352310699,1739037040995,-2328.48994508,0.00011269,2]
[352310700,1739037041005,-709.5455182,0.000113,2]
[352310701,1739037041016,-354.7727591,0.000113,2]
[352310702,1739037041026,-500.0,0.00011369,2]
[352310703,1739037041035,-500.0,0.00011369,2]
[352310704,1739037041045,-279.2739301,0.00011369,2]
[352310705,1739037041054,-866.14,0.00011369,2]
[352310706,1739037041064,-500.0,0.00011369,2]
[352310707,1739037041073,-500.0,0.00011369,2]
[352310708,1739037041083,-500.0,0.00011369,2]
[352310709,1739037041093,-500.0,0.00011369,2]
[352310710,1739037041102,-803.11,0.00011369,2]
[352310711,1739037041111,-500.0,0.00011369,2]
[352310712,1739037041120,-500.0,0.00011369,2]
[352310713,1739037041130,-500.0,0.00011369,2]
[352310714,1739037041139,-597.54,0.00011369,2]
[352310715,1739037041148,-500.0,0.00011369,2]
[352310716,1739037041158,-589.12,0.00011369,2]
[352310717,1739037041167,-500.0,0.00011369,2]
[352310718,1739037041176,-500.0,0.00011369,2]
[352310719,1739037041185,-500.0,0.00011369,2]
[352310720,1739037041194,-427.24333584,0.00011369,2]
[352310721,1739037041203,-640.95,0.00011369,2]
[352310722,1739037041213,-500.0,0.00011369,2]
[352310723,1739037041222,-500.0,0.00011369,2]
[352310724,1739037041231,-500.0,0.00011369,2]
[352310725,1739037041240,-500.0,0.00011369,2]
[352310726,1739037041250,-500.0,0.00011369,2]
[352310727,1739037041261,-518.2,0.00011369,2]
[352310728,1739037041270,-732.19,0.00011369,2]
[352310729,1739037041279,-500.0,0.00011369,2]
[352310730,1739037041289,-500.0,0.00011369,2]
[352310731,1739037041299,-719.84,0.00011369,2]
[352310732,1739037041309,-1030.25,0.00011369,2]
[352310733,1739037041318,-2134.61,0.00011369,2]
[352310734,1739037041327,-500.0,0.00011369,2]
[352310735,1739037041337,-1216.47,0.00011369,2]
[352310736,1739037041348,-650.23,0.00011369,2]
[352310737,1739037041358,-1149.69,0.00011369,2]
[352310738,1739037041367,-898.24,0.00011369,2]
[352310739,1739037041376,-500.0,0.00011369,2]
[352310740,1739037041387,-8241.23,0.00011369,2]
[352310741,1739037041396,-761.98,0.00011369,2]
[352310742,1739037041406,-500.0,0.00011369,2]
[352310743,1739037041416,-836.05,0.00011369,2]
[352310744,1739037041426,-500.0,0.00011369,2]
[352310745,1739037041435,-2585.72,0.00011369,2]
[352310746,1739037041452,-500.0,0.00011369,2]
[352310747,1739037041462,-860.07,0.00011369,2]
[352310748,1739037041471,-500.0,0.00011369,2]
[352310749,1739037041481,-1107.41,0.00011369,2]
[352310750,1739037041490,-500.0,0.00011369,2]
[352310751,1739037041499,-500.0,0.00011369,2]
[352310752,1739037041509,-500.0,0.00011369,2]
[352310753,1739037041518,-500.0,0.00011369,2]
[352310754,1739037041527,-500.0,0.00011369,2]
[352310755,1739037041536,-1876.05,0.00011369,2]
[352310756,1739037041546,-500.0,0.00011369,2]
[352310757,1739037041555,-500.0,0.00011369,2]
[352310758,1739037041564,-858.41,0.00011369,2]
[352310759,1739037041574,-500.0,0.00011369,2]
[352310760,1739037041584,-500.0,0.00011369,2]
[352310761,1739037041593,-500.0,0.00011369,2]
[352310762,1739037041602,-4495.15,0.00011369,2]
[352310763,1739037041611,-500.0,0.00011369,2]
[352310764,1739037041620,-1820.53,0.00011369,2]
[352310765,1739037041634,-500.0,0.00011369,2]
[352310766,1739037041646,-1798.46,0.00011369,2]
[352310767,1739037041655,-500.0,0.00011369,2]
[352310768,1739037041665,-835.94,0.00011369,2]
[352310769,1739037041674,-2203.81,0.00011369,2]
[352310770,1739037041683,-2052.02,0.00011369,2]
[352310771,1739037041693,-778.74,0.00011369,2]
[352310772,1739037041703,-894.43,0.00011369,2]
[352310773,1739037041712,-688.29,0.00011369,2]
[352310774,1739037041722,-9412.92,0.00011369,2]
[352310775,1739037041731,-481.37302079,0.00011369,2]
[352310776,1739037041740,-500.0,0.00011369,2]
[352310777,1739037041750,-500.0,0.00011369,2]
[352310778,1739037041759,-525.36,0.00011369,2]
[352310779,1739037041769,-558.92,0.00011369,2]
[352310780,1739037041778,-931.18,0.00011369,2]
[352310781,1739037041788,-657.17,0.00011369,2]
[352310782,1739037041797,-1377.28,0.00011369,2]
[352310783,1739037041807,-679.32,0.00011369,2]
[352310784,1739037041816,-500.0,0.00011369,2]
[352310785,1739037041826,-500.0,0.00011369,2]
[352310786,1739037041835,-616.8,0.00011369,2]
[352310787,1739037041844,-3171.37,0.00011369,2]
[352310788,1739037041854,-849.25,0.00011369,2]
[352310789,1739037041863,-21125.65,0.00011369,2]
[352310790,1739037041873,-354.7727591,0.000114,2]
[352310791,1739037041883,-354.7727591,0.000114,2]
[352310792,1739037041892,-354.7727591,0.000114,2]
[352310793,1739037041902,-288.0181227,0.000114,2]
[352310794,1739037041912,-354.7727591,0.000114,2]
[352310795,1739037041921,-391.64723935,0.00011408,2]
[352310796,1739037041931,-354.7727591,0.000115,2]
[352310797,1739037041941,-396.0480175,0.000115,2]
[352310798,1739037041950,-215.3095269,0.000115,2]
[352310799,1739037041960,-354.7727591,0.000115,2]
[352310800,1739037041969,-500.0,0.00011506,2]
[352310801,1739037041978,-500.0,0.00011506,2]
[352310802,1739037041989,-866.14,0.00011506,2]
[352310803,1739037041999,-500.0,0.00011506,2]
[352310804,1739037042010,-198.21,0.00011506,2]
[352310805,1739037042020,-500.0,0.00011506,2]
[352310806,1739037042029,-500.0,0.00011506,2]
[352310807,1739037042039,-803.11,0.00011506,2]
[352310808,1739037042049,-500.0,0.00011506,2]
[352310809,1739037042059,-500.0,0.00011506,2]
[352310810,1739037042069,-597.54,0.00011506,2]
[352310811,1739037042079,-500.0,0.00011506,2]
[352310812,1739037042088,-589.12,0.00011506,2]
[352310813,1739037042098,-500.0,0.00011506,2]
[352310814,1739037042107,-500.0,0.00011506,2]
[352310815,1739037042117,-500.0,0.00011506,2]
[352310816,1739037042126,-640.95,0.00011506,2]
[352310817,1739037042136,-500.0,0.00011506,2]
[352310818,1739037042146,-500.0,0.00011506,2]
[352310819,1739037042156,-500.0,0.00011506,2]
[352310820,1739037042166,-500.0,0.00011506,2]
[352310821,1739037042176,-500.0,0.00011506,2]
[352310822,1739037042186,-518.2,0.00011506,2]
[352310823,1739037042195,-732.19,0.00011506,2]
[352310824,1739037042206,-500.0,0.00011506,2]
[352310825,1739037042215,-500.0,0.00011506,2]
[352310826,1739037042225,-719.84,0.00011506,2]
[352310827,1739037042235,-1030.25,0.00011506,2]
[352310828,1739037042245,-2134.61,0.00011506,2]
[352310829,1739037042254,-500.0,0.00011506,2]
[352310830,1739037042266,-1216.47,0.00011506,2]
[352310831,1739037042275,-650.23,0.00011506,2]
[352310832,1739037042285,-1149.69,0.00011506,2]
[352310833,1739037042294,-898.24,0.00011506,2]
[352310834,1739037042304,-500.0,0.00011506,2]
[352310835,1739037042313,-8241.23,0.00011506,2]
[352310836,1739037042323,-761.98,0.00011506,2]
[352310837,1739037042332,-500.0,0.00011506,2]
[352310838,1739037042346,-836.05,0.00011506,2]
[352310839,1739037042356,-500.0,0.00011506,2]
[352310840,1739037042365,-2585.72,0.00011506,2]
[352310841,1739037042374,-500.0,0.00011506,2]
[352310842,1739037042384,-860.07,0.00011506,2]
[352310843,1739037042394,-500.0,0.00011506,2]
[352310844,1739037042404,-1107.41,0.00011506,2]
[352310845,1739037042418,-500.0,0.00011506,2]
[352310846,1739037042428,-500.0,0.00011506,2]
[352310847,1739037042438,-339.12834968,0.00011506,2]
[352310848,1739037042450,-500.0,0.00011506,2]
[352310849,1739037042461,-500.0,0.00011506,2]
[352310850,1739037042471,-1876.05,0.00011506,2]
[352310851,1739037042481,-500.0,0.00011506,2]
[352310852,1739037042491,-500.0,0.00011506,2]
[352310853,1739037042500,-858.41,0.00011506,2]
[352310854,1739037042512,-500.0,0.00011506,2]
[352310855,1739037042522,-500.0,0.00011506,2]
[352310856,1739037042532,-500.0,0.00011506,2]
[352310857,1739037042542,-4495.15,0.00011506,2]
[352310858,1739037042552,-500.0,0.00011506,2]
[352310859,1739037042563,-1820.53,0.00011506,2]
[352310860,1739037042573,-500.0,0.00011506,2]
[352310861,1739037042582,-1798.46,0.00011506,2]
[352310862,1739037042592,-500.0,0.00011506,2]
[352310863,1739037042601,-835.94,0.00011506,2]
[352310864,1739037042611,-2203.81,0.00011506,2]
[352310865,1739037042620,-2052.02,0.00011506,2]
[352310866,1739037042630,-778.74,0.00011506,2]
[352310867,1739037042639,-894.43,0.00011506,2]
[352310868,1739037042648,-688.29,0.00011506,2]
[352310869,1739037042658,-9412.92,0.00011506,2]
[352310870,1739037042667,-500.0,0.00011506,2]
[352310871,1739037042677,-500.0,0.00011506,2]
[352310872,1739037042686,-525.36,0.00011506,2]
[352310873,1739037042696,-558.92,0.00011506,2]
[352310874,1739037042705,-931.18,0.00011506,2]
[352310875,1739037042715,-657.17,0.00011506,2]
[352310876,1739037042724,-1377.28,0.00011506,2]
[352310877,1739037042733,-679.32,0.00011506,2]
[352310878,1739037042742,-175.03,0.00011506,2]
[352310879,1739037042752,-500.0,0.00011506,2]
[352310880,1739037042762,-616.8,0.00011506,2]
[352310881,1739037042771,-3171.37,0.00011506,2]
[352310882,1739037042781,-849.25,0.00011506,2]
[352310883,1739037042791,-21125.65,0.00011506,2]
[352310884,1739037042800,-354.7727591,0.000116,2]
[352310885,1739037042809,-354.7727591,0.000116,2]
[352310886,1739037042818,-604.1503283,0.000116,2]
[352310887,1739037042827,-500.0,0.00011618,2]
[352310888,1739037042836,-500.0,0.00011618,2]
[352310889,1739037042846,-500.0,0.00011618,2]
[352310890,1739037042855,-211.32666311,0.00011618,2]
[352310891,1739037042865,-500.0,0.00011618,2]
[352310892,1739037042874,-500.0,0.00011643,2]
[352310893,1739037042885,-500.0,0.00011643,2]
[352310894,1739037042894,-866.14,0.00011643,2]
[352310895,1739037042903,-500.0,0.00011643,2]
[352310896,1739037042913,-500.0,0.00011643,2]
[352310897,1739037042922,-500.0,0.00011643,2]
[352310898,1739037042932,-803.11,0.00011643,2]
[352310899,1739037042941,-500.0,0.00011643,2]
[352310900,1739037042950,-500.0,0.00011643,2]
[352310901,1739037042960,-597.54,0.00011643,2]
[352310902,1739037042969,-500.0,0.00011643,2]
[352310903,1739037042978,-589.12,0.00011643,2]
[352310904,1739037042988,-500.0,0.00011643,2]
[352310905,1739037042998,-500.0,0.00011643,2]
[352310906,1739037043015,-500.0,0.00011643,2]
[352310907,1739037043029,-640.95,0.00011643,2]
[352310908,1739037043039,-500.0,0.00011643,2]
[352310909,1739037043049,-500.0,0.00011643,2]
[352310910,1739037043059,-500.0,0.00011643,2]
[352310911,1739037043069,-500.0,0.00011643,2]
[352310912,1739037043078,-261.59409197,0.00011643,2]
[352310913,1739037043087,-518.2,0.00011643,2]
[352310915,1739037043097,-732.19,0.00011643,2]
[352310916,1739037043106,-500.0,0.00011643,2]
[352310917,1739037043116,-500.0,0.00011643,2]
[352310918,1739037043126,-719.84,0.00011643,2]
[352310920,1739037043136,-1030.25,0.00011643,2]
[352310921,1739037043146,-2134.61,0.00011643,2]
[352310922,1739037043155,-500.0,0.00011643,2]
[352310923,1739037043165,-1216.47,0.00011643,2]
[352310924,1739037043174,-650.23,0.00011643,2]
[352310925,1739037043184,-1149.69,0.00011643,2]
[352310926,1739037043192,-898.24,0.00011643,2]
[352310927,1739037043202,-500.0,0.00011643,2]
[352310928,1739037043211,-8241.23,0.00011643,2]
[352310930,1739037043220,-761.98,0.00011643,2]
[352310931,1739037043230,-500.0,0.00011643,2]
[352310933,1739037043239,-836.05,0.00011643,2]
[352310935,1739037043248,-500.0,0.00011643,2]
[352310937,1739037043257,-2585.72,0.00011643,2]
[352310939,1739037043267,-237.85,0.00011643,2]
[352310941,1739037043276,-860.07,0.00011643,2]
[352310943,1739037043286,-500.0,0.00011643,2]
[352310945,1739037043295,-1107.41,0.00011643,2]
[352310947,1739037043304,-500.0,0.00011643,2]
[352310948,1739037043313,-500.0,0.00011643,2]
[352310949,1739037043322,-500.0,0.00011643,2]
[352310950,1739037043331,-1876.05,0.00011643,2]
[352310951,1739037043343,-500.0,0.00011643,2]
[352310952,1739037043352,-500.0,0.00011643,2]
[352310953,1739037043361,-858.41,0.00011643,2]
[352310954,1739037043370,-500.0,0.00011643,2]
[352310955,1739037043379,-500.0,0.00011643,2]
[352310956,1739037043389,-500.0,0.00011643,2]
[352310957,1739037043398,-4495.15,0.00011643,2]
[352310958,1739037043407,-500.0,0.00011643,2]
[352310959,1739037043415,-1820.53,0.00011643,2]
[352310960,1739037043425,-500.0,0.00011643,2]
[352310961,1739037043435,-1798.46,0.00011643,2]
[352310962,1739037043443,-500.0,0.00011643,2]
[352310963,1739037043452,-835.94,0.00011643,2]
[352310964,1739037043461,-2203.81,0.00011643,2]
[352310965,1739037043471,-2052.02,0.00011643,2]
[352310966,1739037043480,-778.74,0.00011643,2]
[352310967,1739037043489,-894.43,0.00011643,2]
[352310968,1739037043498,-688.29,0.00011643,2]
[352310969,1739037043507,-9412.92,0.00011643,2]
[352310970,1739037043517,-500.0,0.00011643,2]
[352310971,1739037043526,-500.0,0.00011643,2]
[352310972,1739037043535,-525.36,0.00011643,2]
[352310973,1739037043545,-558.92,0.00011643,2]
[352310974,1739037043554,-931.18,0.00011643,2]
[352310975,1739037043564,-657.17,0.00011643,2]
[352310976,1739037043573,-1377.28,0.00011643,2]
[352310977,1739037043585,-679.32,0.00011643,2]
[352310978,1739037043594,-500.0,0.00011643,2]
[352310979,1739037043604,-616.8,0.00011643,2]
[352310980,1739037043613,-3171.37,0.00011643,2]
[352310981,1739037043623,-849.25,0.00011643,2]
[352310982,1739037043634,-21125.65,0.00011643,2]
[352310983,1739037043643,-500.0,0.00011648,2]
[352310984,1739037043652,-597.483,0.000117,2]
[352310985,1739037043663,-600.0,0.00011703,2]
[352310986,1739037043673,-500.0,0.0001178,2]
[352310987,1739037043682,-500.0,0.0001178,2]
[352310988,1739037043692,-866.14,0.0001178,2]
[352310989,1739037043702,-500.0,0.0001178,2]
[352310990,1739037043711,-500.0,0.0001178,2]
[352310991,1739037043720,-500.0,0.0001178,2]
[352310992,1739037043730,-803.11,0.0001178,2]
[352310993,1739037043741,-500.0,0.0001178,2]
[352310994,1739037043751,-500.0,0.0001178,2]
[352310995,1739037043761,-597.54,0.0001178,2]
[352310996,1739037043771,-500.0,0.0001178,2]
[352310997,1739037043781,-589.12,0.0001178,2]
[352310998,1739037043790,-500.0,0.0001178,2]
[352310999,1739037043801,-500.0,0.0001178,2]
[352311000,1739037043811,-640.95,0.0001178,2]
[352311001,1739037043821,-500.0,0.0001178,2]
[352311002,1739037043830,-500.0,0.0001178,2]
[352311003,1739037043840,-500.0,0.0001178,2]
[352311004,1739037043849,-500.0,0.0001178,2]
[352311005,1739037043859,-518.2,0.0001178,2]
[352311006,1739037043869,-732.19,0.0001178,2]
[352311007,1739037043878,-500.0,0.0001178,2]
[352311008,1739037043887,-500.0,0.0001178,2]
[352311009,1739037043898,-719.84,0.0001178,2]
[352311010,1739037043908,-1030.25,0.0001178,2]
[352311011,1739037043917,-2134.61,0.0001178,2]
[352311012,1739037043927,-500.0,0.0001178,2]
[352311013,1739037043936,-1216.47,0.0001178,2]
[352311014,1739037043947,-650.23,0.0001178,2]
[352311015,1739037043956,-1149.69,0.0001178,2]
[352311016,1739037043965,-898.24,0.0001178,2]
[352311017,1739037043975,-500.0,0.0001178,2]
[352311018,1739037043984,-8241.23,0.0001178,2]
[352311019,1739037043993,-761.98,0.0001178,2]
[352311020,1739037044002,-500.0,0.0001178,2]
[352311021,1739037044012,-836.05,0.0001178,2]
[352311022,1739037044021,-500.0,0.0001178,2]
[352311023,1739037044031,-2585.72,0.0001178,2]
[352311024,1739037044041,-860.07,0.0001178,2]
[352311025,1739037044050,-500.0,0.0001178,2]
[352311026,1739037044186,-1107.41,0.0001178,2]
[352311027,1739037044197,-500.12,0.0001178,2]
[352311028,1739037044207,-500.0,0.0001178,2]
[352311029,1739037044218,-500.0,0.0001178,2]
[352311030,1739037044227,-1876.05,0.0001178,2]
[352311031,1739037044237,-500.0,0.0001178,2]
[352311032,1739037044247,-500.0,0.0001178,2]
[352311033,1739037044256,-858.41,0.0001178,2]
[352311034,1739037044268,-500.0,0.0001178,2]
[352311035,1739037044278,-500.0,0.0001178,2]
[352311036,1739037044287,-500.0,0.0001178,2]
[352311037,1739037044296,-4495.15,0.0001178,2]
[352311038,1739037044306,-1820.53,0.0001178,2]
[352311039,1739037044315,-500.0,0.0001178,2]
[352311040,1739037044324,-1798.46,0.0001178,2]
[352311041,1739037044334,-500.0,0.0001178,2]
[352311042,1739037044346,-835.94,0.0001178,2]
[352311043,1739037044356,-2203.81,0.0001178,2]
[352311044,1739037044365,-2052.02,0.0001178,2]
[352311045,1739037044375,-778.74,0.0001178,2]
[352311046,1739037044385,-894.43,0.0001178,2]
[352311047,1739037044394,-688.29,0.0001178,2]
[352311048,1739037044403,-9412.92,0.0001178,2]
[352311049,1739037044413,-500.0,0.0001178,2]
[352311050,1739037044423,-500.0,0.0001178,2]
[352311051,1739037044433,-525.36,0.0001178,2]
[352311052,1739037044444,-558.92,0.0001178,2]
[352311053,1739037044453,-931.18,0.0001178,2]
[352311054,1739037044463,-657.17,0.0001178,2]
[352311055,1739037044472,-1377.28,0.0001178,2]
[352311056,1739037044482,-679.32,0.0001178,2]
[352311057,1739037044491,-500.0,0.0001178,2]
[352311058,1739037044500,-616.8,0.0001178,2]
[352311059,1739037044511,-3171.37,0.0001178,2]
[352311060,1739037044521,-849.25,0.0001178,2]
[352311061,1739037044530,-21125.65,0.0001178,2]
[352311062,1739037044540,-151.0,0.00011793,2]
[352311063,1739037044549,-151.0,0.000118,2]
[352311064,1739037044559,-13265.39216455,0.00011828,2]
[352311065,1739037044568,-150.0,0.00011832,2]
[352311066,1739037044577,-1975.0,0.00011832,2]
[352311067,1739037044586,-537.0,0.00011832,2]
[352311068,1739037044595,-2271.0,0.00011832,2]
[352311069,1739037044605,-1000.0,0.00011892,2]
[352311070,1739037044614,-151.0,0.000119,2]
[352311071,1739037044624,-151.0,0.000119,2]
[352311072,1739037044633,-472.9025965,0.00011915,2]
[352311073,1739037044643,-500.0,0.00011916,2]
[352311074,1739037044652,-282.49349908,0.00011916,2]
[352311075,1739037044662,-151.0,0.00011917,2]
[352311076,1739037044672,-151.0,0.00011917,2]
[352311077,1739037044681,-151.0,0.00011917,2]
[352311078,1739037044690,-500.0,0.00011917,2]
[352311079,1739037044699,-500.0,0.00011917,2]
[352311080,1739037044709,-866.14,0.00011917,2]
[352311081,1739037044718,-500.0,0.00011917,2]
[352311082,1739037044729,-500.0,0.00011917,2]
[352311083,1739037044738,-500.0,0.00011917,2]
[352311084,1739037044748,-803.11,0.00011917,2]
[352311085,1739037044757,-500.0,0.00011917,2]
[352311086,1739037044768,-500.0,0.00011917,2]
[352311087,1739037044779,-597.54,0.00011917,2]
[352311088,1739037044788,-226.05334414,0.00011917,2]
[352311089,1739037044798,-589.12,0.00011917,2]
[352311090,1739037044807,-500.0,0.00011917,2]
[352311091,1739037044817,-640.95,0.00011917,2]
[352311092,1739037044827,-500.0,0.00011917,2]
[352311093,1739037044836,-500.0,0.00011917,2]
[352311094,1739037044845,-500.0,0.00011917,2]
[352311095,1739037044855,-500.0,0.00011917,2]
[352311096,1739037044864,-518.2,0.00011917,2]
[352311097,1739037044873,-732.19,0.00011917,2]
[352311098,1739037044883,-500.0,0.00011917,2]
[352311099,1739037044892,-500.0,0.00011917,2]